[Event "*** Titled Tuesday 3|2 Blitz"]
[Site "Chess.com"]
[Date "2016.07.05"]
[Round "5"]
[White "Superfelix"]
[Black "AlexanderL"]
[Result "1/2-1/2"]
[WhiteElo "2346"]
[BlackElo "2546"]
[TimeControl "180+2"]
[EndTime "18:03:19 PDT"]
[Termination "Game drawn - insufficient material"]

1. e4 {[%clk 0:03:01.9]} 1... e6 {[%clk 0:03:00.9]} 2. d4 {[%clk 0:03:02.7]}
2... d5 {[%clk 0:03:01.4]} 3. Nd2 {[%clk 0:03:04.3]} 3... c5 {[%clk 0:03:00.6]}
4. exd5 {[%clk 0:03:05.2]} 4... Qxd5 {[%clk 0:03:01.1]} 5. Ngf3 {[%clk
0:03:06.5]} 5... cxd4 {[%clk 0:03:01.6]} 6. Bc4 {[%clk 0:03:08.1]} 6... Qd7
{[%clk 0:03:02.7]} 7. O-O {[%clk 0:03:09.1]} 7... Nc6 {[%clk 0:03:03.8]} 8. Nb3
{[%clk 0:03:10.8]} 8... a6 {[%clk 0:02:59.3]} 9. Nbxd4 {[%clk 0:03:10.4]} 9...
Nxd4 {[%clk 0:02:59.5]} 10. Qxd4 {[%clk 0:03:11.5]} 10... Qxd4 {[%clk
0:03:00.4]} 11. Nxd4 {[%clk 0:03:12.2]} 11... Nf6 {[%clk 0:03:01.4]} 12. Re1
{[%clk 0:03:09.8]} 12... Bc5 {[%clk 0:02:59.9]} 13. c3 {[%clk 0:03:04.5]} 13...
Bxd4 {[%clk 0:02:57.2]} 14. cxd4 {[%clk 0:03:05.5]} 14... O-O {[%clk 0:02:56.7]}
15. Bg5 {[%clk 0:02:57.4]} 15... Bd7 {[%clk 0:02:57.6]} 16. Rad1 {[%clk
0:02:42.3]} 16... Rac8 {[%clk 0:02:54.2]} 17. Bb3 {[%clk 0:02:37.2]} 17... Bb5
{[%clk 0:02:40.1]} 18. Rc1 {[%clk 0:02:30.5]} 18... Rxc1 {[%clk 0:02:33.8]} 19.
Rxc1 {[%clk 0:02:30.8]} 19... Bc6 {[%clk 0:02:33.6]} 20. Bc4 {[%clk 0:02:18.5]}
20... Ne4 {[%clk 0:02:23.5]} 21. Bf4 {[%clk 0:02:06.5]} 21... Rc8 {[%clk
0:02:18.9]} 22. Bb3 {[%clk 0:01:40.7]} 22... Rd8 {[%clk 0:02:15]} 23. f3 {[%clk
0:01:29.8]} 23... Nd6 {[%clk 0:02:05.3]} 24. d5 {[%clk 0:01:22.7]} 24... exd5
{[%clk 0:02:04.2]} 25. Bxd5 {[%clk 0:01:18.1]} 25... Bxd5 {[%clk 0:02:04.7]} 26.
Bxd6 {[%clk 0:01:19.1]} 26... Bxa2 {[%clk 0:02:04.7]} 27. Be7 {[%clk 0:01:06.6]}
27... Re8 {[%clk 0:02:04.4]} 28. Rd1 {[%clk 0:01:03.6]} 28... Be6 {[%clk
0:01:43]} 29. Rd8 {[%clk 0:01:04]} 29... Rxd8 {[%clk 0:01:43.4]} 30. Bxd8 {[%clk
0:01:05.3]} 30... Kf8 {[%clk 0:01:43.7]} 31. Kf2 {[%clk 0:01:06.4]} 31... Ke8
{[%clk 0:01:44.9]} 32. Ba5 {[%clk 0:01:06.4]} 32... Kd7 {[%clk 0:01:45.9]} 33.
Bc3 {[%clk 0:01:06.4]} 33... f6 {[%clk 0:01:43.4]} 34. Ke3 {[%clk 0:01:07.8]}
34... Kc6 {[%clk 0:01:44.3]} 35. g4 {[%clk 0:01:04.3]} 35... Kd5 {[%clk
0:01:38.7]} 36. h4 {[%clk 0:01:02.8]} 36... Kc4 {[%clk 0:01:35.2]} 37. g5 {[%clk
0:00:56.4]} 37... fxg5 {[%clk 0:01:34.6]} 38. hxg5 {[%clk 0:00:57.5]} 38... g6
{[%clk 0:01:35.2]} 39. Kd2 {[%clk 0:00:52]} 39... b6 {[%clk 0:01:24.9]} 40. f4
{[%clk 0:00:51.8]} 40... a5 {[%clk 0:01:25.6]} 41. Bf6 {[%clk 0:00:46]} 41... b5
{[%clk 0:01:24.9]} 42. Kc1 {[%clk 0:00:45.8]} 42... Bf5 {[%clk 0:01:25]} 43. Bd8
{[%clk 0:00:45]} 43... a4 {[%clk 0:01:24.6]} 44. Be7 {[%clk 0:00:45.2]} 44...
Kb3 {[%clk 0:01:19.6]} 45. Bf8 {[%clk 0:00:40.9]} 45... b4 {[%clk 0:01:19]} 46.
Be7 {[%clk 0:00:41.4]} 46... a3 {[%clk 0:01:09.8]} 47. bxa3 {[%clk 0:00:42.4]}
47... Kxa3 {[%clk 0:01:10.7]} 48. Bd6 {[%clk 0:00:41.2]} 48... Kb3 {[%clk
0:01:11.6]} 49. Be7 {[%clk 0:00:39.4]} 49... Kc3 {[%clk 0:01:11.4]} 50. Bf6+
{[%clk 0:00:40.5]} 50... Kd3 {[%clk 0:01:12.3]} 51. Kb2 {[%clk 0:00:36.6]} 51...
Be6 {[%clk 0:01:12.8]} 52. Be5 {[%clk 0:00:30.8]} 52... Ke4 {[%clk 0:01:10.3]}
53. Bd6 {[%clk 0:00:28.7]} 53... Kf5 {[%clk 0:01:08.9]} 54. Bb8 {[%clk
0:00:24.9]} 54... b3 {[%clk 0:01:08.8]} 55. Bc7 {[%clk 0:00:26.1]} 55... Bd5
{[%clk 0:01:06.9]} 56. Bb8 {[%clk 0:00:27.4]} 56... Ke6 {[%clk 0:01:04.1]} 57.
Bc7 {[%clk 0:00:28.4]} 57... Kf7 {[%clk 0:01:05]} 58. Bb8 {[%clk 0:00:29.7]}
58... Kg8 {[%clk 0:01:06]} 59. Be5 {[%clk 0:00:30.6]} 59... Kf7 {[%clk
0:01:04.1]} 60. Bb8 {[%clk 0:00:32.1]} 60... Bc4 {[%clk 0:01:04.4]} 61. Bc7
{[%clk 0:00:33.2]} 61... Be6 {[%clk 0:01:05.6]} 62. Bb8 {[%clk 0:00:34.6]} 62...
Kg8 {[%clk 0:01:04.3]} 63. Bc7 {[%clk 0:00:35.8]} 63... h5 {[%clk 0:01:03.7]}
64. gxh6 {[%clk 0:00:36]} 64... Kh7 {[%clk 0:01:04.8]} 65. Bb8 {[%clk
0:00:36.9]} 65... Kxh6 {[%clk 0:01:06.1]} 66. Bc7 {[%clk 0:00:38.2]} 66... g5
{[%clk 0:01:06.9]} 67. fxg5+ {[%clk 0:00:38.3]} 67... Kxg5 {[%clk 0:01:08.3]}
68. Bb8 {[%clk 0:00:39.8]} 68... Kg4 {[%clk 0:01:09.4]} 69. Bc7 {[%clk
0:00:41.3]} 69... Bf5 {[%clk 0:01:10.5]} 70. Bb8 {[%clk 0:00:42.9]} 70... Bg6
{[%clk 0:01:11.4]} 71. Kxb3 {[%clk 0:00:44.1]} 71... Bc2+ {[%clk 0:01:12.5]} 72.
Kxc2 {[%clk 0:00:45]} 1/2-1/2

[Event "*** Titled Tuesday 3|2 Blitz"]
[Site "Chess.com"]
[Date "2016.07.05"]
[Round "5"]
[White "anon97531"]
[Black "LonesomeGeorge1"]
[Result "0-1"]
[WhiteElo "2286"]
[BlackElo "2288"]
[TimeControl "180+2"]
[EndTime "18:04:03 PDT"]
[Termination "LonesomeGeorge1 won by resignation"]

1. e4 {[%clk 0:02:57.4]} 1... c5 {[%clk 0:03:00]} 2. Nc3 {[%clk 0:02:58]} 2...
Nc6 {[%clk 0:03:00]} 3. f4 {[%clk 0:02:59.5]} 3... g6 {[%clk 0:03:01.1]} 4. Nf3
{[%clk 0:03:00.8]} 4... Bg7 {[%clk 0:03:02.2]} 5. Bb5 {[%clk 0:03:02.2]} 5...
Nd4 {[%clk 0:03:03.2]} 6. O-O {[%clk 0:03:02.6]} 6... e6 {[%clk 0:02:59.2]} 7.
Bd3 {[%clk 0:02:37.6]} 7... d6 {[%clk 0:02:48.7]} 8. Nxd4 {[%clk 0:02:28.1]}
8... cxd4 {[%clk 0:02:50.6]} 9. Ne2 {[%clk 0:02:29.2]} 9... Ne7 {[%clk
0:02:50.6]} 10. c3 {[%clk 0:02:29.5]} 10... Nc6 {[%clk 0:02:46.2]} 11. cxd4
{[%clk 0:02:14.9]} 11... Nxd4 {[%clk 0:02:39.9]} 12. Nxd4 {[%clk 0:02:11.2]}
12... Bxd4+ {[%clk 0:02:41.8]} 13. Kh1 {[%clk 0:02:12.6]} 13... Bg7 {[%clk
0:02:43.4]} 14. Bb5+ {[%clk 0:02:06.2]} 14... Bd7 {[%clk 0:02:43.2]} 15. Qa4
{[%clk 0:02:07.1]} 15... Bxb5 {[%clk 0:02:41.5]} 16. Qxb5+ {[%clk 0:02:08.1]}
16... Qd7 {[%clk 0:02:43.4]} 17. Qxd7+ {[%clk 0:02:04.1]} 17... Kxd7 {[%clk
0:02:45.3]} 18. d3 {[%clk 0:02:04.5]} 18... f5 {[%clk 0:02:43.8]} 19. Be3 {[%clk
0:02:01.8]} 19... Rhc8 {[%clk 0:02:42.3]} 20. Rac1 {[%clk 0:01:48.5]} 20... a6
{[%clk 0:02:22.8]} 21. b3 {[%clk 0:01:47.4]} 21... Bb2 {[%clk 0:02:20.6]} 22.
Rb1 {[%clk 0:01:45.4]} 22... Rc2 {[%clk 0:02:20.2]} 23. Rf2 {[%clk 0:01:46.7]}
23... Rac8 {[%clk 0:02:10.8]} 24. Kg1 {[%clk 0:01:33]} 24... Rxf2 {[%clk
0:02:00.6]} 25. Kxf2 {[%clk 0:01:27.7]} 25... Rc2+ {[%clk 0:02:01.7]} 26. Kf3
{[%clk 0:01:29.1]} 26... Ba3 {[%clk 0:01:54.2]} 27. Ra1 {[%clk 0:01:23.2]} 27...
Bb2 {[%clk 0:01:39]} 28. Rb1 {[%clk 0:01:22.8]} 28... b5 {[%clk 0:01:35.9]} 29.
a4 {[%clk 0:01:19.6]} 29... Kc6 {[%clk 0:01:16.6]} 30. h3 {[%clk 0:01:17.1]}
30... Bf6 {[%clk 0:01:03.8]} 31. g4 {[%clk 0:01:14.2]} 31... Bb2 {[%clk
0:00:46.6]} 32. h4 {[%clk 0:00:39.2]} 32... Bf6 {[%clk 0:00:38.6]} 33. h5 {[%clk
0:00:32.9]} 33... gxh5 {[%clk 0:00:34.8]} 34. gxf5 {[%clk 0:00:27]} 34... exf5
{[%clk 0:00:34]} 35. exf5 {[%clk 0:00:27.9]} 35... h4 {[%clk 0:00:34.9]} 36.
axb5+ {[%clk 0:00:19.9]} 36... Kxb5 {[%clk 0:00:35.8]} 37. Ke4 {[%clk
0:00:20.1]} 37... h3 {[%clk 0:00:34.5]} 38. Kd5 {[%clk 0:00:18.6]} 38... h2
{[%clk 0:00:33.3]} 39. Rh1 {[%clk 0:00:17.9]} 39... Kb4 {[%clk 0:00:21.4]} 40.
Kxd6 {[%clk 0:00:14.8]} 40... Kxb3 {[%clk 0:00:22.6]} 41. Ke6 {[%clk 0:00:16]}
41... Rc6+ {[%clk 0:00:21.1]} 42. Kd5 {[%clk 0:00:17]} 42... Rc2 {[%clk
0:00:21.1]} 43. Ke6 {[%clk 0:00:17.4]} 43... Bb2 {[%clk 0:00:18.4]} 44. d4
{[%clk 0:00:08.1]} 44... Re2 {[%clk 0:00:10.5]} 45. Kd5 {[%clk 0:00:08.1]} 45...
Rxe3 {[%clk 0:00:10]} 46. Rxh2 {[%clk 0:00:09.6]} 46... Rd3 {[%clk 0:00:11.5]}
47. Rxh7 {[%clk 0:00:09.8]} 47... Rxd4+ {[%clk 0:00:12.6]} 48. Kc5 {[%clk
0:00:11.2]} 48... Rxf4 {[%clk 0:00:13.1]} 49. Rf7 {[%clk 0:00:11.8]} 49... a5
{[%clk 0:00:13.6]} 50. Rb7+ {[%clk 0:00:11]} 50... Kc2 {[%clk 0:00:13.1]} 51. f6
{[%clk 0:00:07.8]} 51... Rxf6 {[%clk 0:00:08.2]} 52. Kb5 {[%clk 0:00:08.9]}
52... Rf5+ {[%clk 0:00:08.8]} 53. Ka4 {[%clk 0:00:09.6]} 53... Bc3 {[%clk
0:00:08.5]} 54. Rc7 {[%clk 0:00:09.3]} 54... Rf4+ {[%clk 0:00:09.4]} 55. Ka3
{[%clk 0:00:10.3]} 55... Rf1 {[%clk 0:00:07.8]} 56. Ka4 {[%clk 0:00:10.7]} 56...
Ra1+ {[%clk 0:00:08.8]} 57. Kb5 {[%clk 0:00:12]} 57... a4 {[%clk 0:00:10.2]} 58.
Rh7 {[%clk 0:00:11.9]} 58... Kb3 {[%clk 0:00:10.6]} 59. Rh3 {[%clk 0:00:12.7]}
59... a3 {[%clk 0:00:11.8]} 60. Rh2 {[%clk 0:00:13.4]} 60... a2 {[%clk
0:00:13.1]} 61. Kc5 {[%clk 0:00:14.3]} 61... Rb1 {[%clk 0:00:14.3]} 0-1

[Event "*** Titled Tuesday 3|2 Blitz"]
[Site "Chess.com"]
[Date "2016.07.05"]
[Round "5"]
[White "GeorgMeier"]
[Black "GianmarcoVaR"]
[Result "1-0"]
[WhiteElo "2656"]
[BlackElo "2410"]
[TimeControl "180+2"]
[EndTime "18:04:51 PDT"]
[Termination "GeorgMeier won by resignation"]

1. Nf3 {[%clk 0:03:01.5]} 1... Nf6 {[%clk 0:02:56.6]} 2. g3 {[%clk 0:03:02.1]}
2... b6 {[%clk 0:02:53.9]} 3. Bg2 {[%clk 0:02:56.9]} 3... Bb7 {[%clk 0:02:55.2]}
4. O-O {[%clk 0:02:58.3]} 4... c5 {[%clk 0:02:55.8]} 5. c4 {[%clk 0:02:59.6]}
5... g6 {[%clk 0:02:55.6]} 6. Nc3 {[%clk 0:03:00.9]} 6... Bg7 {[%clk 0:02:56.3]}
7. b3 {[%clk 0:03:02.6]} 7... O-O {[%clk 0:02:56.5]} 8. Bb2 {[%clk 0:03:04.1]}
8... Nc6 {[%clk 0:02:57.4]} 9. d4 {[%clk 0:03:03.3]} 9... Nxd4 {[%clk
0:02:56.7]} 10. Nxd4 {[%clk 0:03:05.2]} 10... Bxg2 {[%clk 0:02:53.7]} 11. Kxg2
{[%clk 0:03:07.1]} 11... cxd4 {[%clk 0:02:54.5]} 12. Qxd4 {[%clk 0:03:09]} 12...
d6 {[%clk 0:02:47.8]} 13. Rad1 {[%clk 0:03:02.6]} 13... Qd7 {[%clk 0:02:36.7]}
14. e4 {[%clk 0:02:49.3]} 14... Rab8 {[%clk 0:02:28]} 15. h3 {[%clk 0:02:45.5]}
15... a6 {[%clk 0:02:27.4]} 16. a4 {[%clk 0:02:43]} 16... Qc6 {[%clk 0:02:13]}
17. Rfe1 {[%clk 0:02:30.1]} 17... Rfe8 {[%clk 0:02:09.4]} 18. Qe3 {[%clk
0:02:24.7]} 18... Nd7 {[%clk 0:01:58.9]} 19. Rd2 {[%clk 0:02:18.6]} 19... Nc5
{[%clk 0:01:59.4]} 20. Nd5 {[%clk 0:02:18.3]} 20... Bxb2 {[%clk 0:01:20.2]} 21.
Rxb2 {[%clk 0:02:20.2]} 21... b5 {[%clk 0:01:21.5]} 22. cxb5 {[%clk 0:02:20.9]}
22... axb5 {[%clk 0:01:22.5]} 23. Rc2 {[%clk 0:02:22.3]} 23... Qd7 {[%clk
0:00:36.4]} 24. a5 {[%clk 0:02:21.5]} 24... Na6 {[%clk 0:00:36.9]} 25. Rec1
{[%clk 0:02:14.5]} 25... b4 {[%clk 0:00:32.1]} 26. Qd4 {[%clk 0:01:55.7]} 26...
Rb5 {[%clk 0:00:30.5]} 27. Nc7 {[%clk 0:01:30.6]} 27... Nxc7 {[%clk 0:00:19]}
28. Rxc7 {[%clk 0:01:32.5]} 28... Qe6 {[%clk 0:00:17]} 29. a6 {[%clk 0:01:33]}
29... Ra5 {[%clk 0:00:16.5]} 30. a7 {[%clk 0:01:31.4]} 30... Ra8 {[%clk
0:00:12.8]} 31. Qxb4 {[%clk 0:01:32.4]} 31... Kg7 {[%clk 0:00:09.4]} 32. Qd4+
{[%clk 0:01:18.3]} 32... Qe5 {[%clk 0:00:10.7]} 33. Qxe5+ {[%clk 0:01:11]} 33...
dxe5 {[%clk 0:00:11.5]} 34. Rxe7 {[%clk 0:01:08.4]} 34... R8xa7 {[%clk
0:00:12.5]} 35. Rxa7 {[%clk 0:01:08.5]} 35... Rxa7 {[%clk 0:00:13.5]} 36. Rb1
{[%clk 0:01:09.9]} 36... Kf6 {[%clk 0:00:12.8]} 37. b4 {[%clk 0:01:09.7]} 37...
Ke6 {[%clk 0:00:13.8]} 38. Kf3 {[%clk 0:01:03]} 38... Kd6 {[%clk 0:00:14]} 39.
Kg4 {[%clk 0:00:52.1]} 39... h6 {[%clk 0:00:05.2]} 40. h4 {[%clk 0:00:51.5]}
40... Ra4 {[%clk 0:00:02.8]} 41. h5 {[%clk 0:00:51.9]} 41... Kc6 {[%clk
0:00:04]} 42. f4 {[%clk 0:00:50.5]} 42... exf4 {[%clk 0:00:04.7]} 43. gxf4
{[%clk 0:00:51.6]} 43... Kb5 {[%clk 0:00:04.4]} 44. e5 {[%clk 0:00:42.4]} 44...
Ra2 {[%clk 0:00:04.8]} 45. hxg6 {[%clk 0:00:35.7]} 45... Rg2+ {[%clk 0:00:05.3]}
46. Kf5 {[%clk 0:00:33.6]} 46... Rxg6 {[%clk 0:00:07.2]} 47. Ke4 {[%clk
0:00:32.3]} 47... h5 {[%clk 0:00:08.1]} 48. f5 {[%clk 0:00:33.6]} 48... Rh6
{[%clk 0:00:09]} 49. Kf4 {[%clk 0:00:22.9]} 49... h4 {[%clk 0:00:09.4]} 50. Kg5
{[%clk 0:00:21.6]} 50... Rh7 {[%clk 0:00:10.5]} 51. Kf6 {[%clk 0:00:21.8]} 51...
h3 {[%clk 0:00:10.5]} 52. e6 {[%clk 0:00:23.2]} 52... fxe6 {[%clk 0:00:11.8]}
53. fxe6 {[%clk 0:00:25.1]} 53... h2 {[%clk 0:00:04.9]} 54. e7 {[%clk 0:00:26]}
54... Kc6 {[%clk 0:00:05.8]} 55. b5+ {[%clk 0:00:26.6]} 55... Kd7 {[%clk
0:00:06]} 56. Rd1+ {[%clk 0:00:25.8]} 56... Kc7 {[%clk 0:00:07.3]} 57. b6+
{[%clk 0:00:19.6]} 57... Kxb6 {[%clk 0:00:05.5]} 58. Rh1 {[%clk 0:00:20.7]}
58... Rh8 {[%clk 0:00:04.6]} 59. Rxh2 {[%clk 0:00:21.4]} 59... Rxh2 {[%clk
0:00:04]} 60. e8=Q {[%clk 0:00:22.7]} 60... Rf2+ {[%clk 0:00:05.5]} 61. Kg5
{[%clk 0:00:24]} 61... Rg2+ {[%clk 0:00:06.7]} 62. Kf4 {[%clk 0:00:25.2]} 62...
Rb2 {[%clk 0:00:06.3]} 63. Qb8+ {[%clk 0:00:24.2]} 1-0

[Event "*** Titled Tuesday 3|2 Blitz"]
[Site "Chess.com"]
[Date "2016.07.05"]
[Round "5"]
[White "jcibarra"]
[Black "Hikaru"]
[Result "1/2-1/2"]
[WhiteElo "2669"]
[BlackElo "2998"]
[TimeControl "180+2"]
[EndTime "18:04:55 PDT"]
[Termination "Game drawn - insufficient material"]

1. e4 {[%clk 0:03:01.9]} 1... e5 {[%clk 0:03:00.5]} 2. Nf3 {[%clk 0:03:03.5]}
2... Nc6 {[%clk 0:03:00.8]} 3. Bb5 {[%clk 0:03:03.6]} 3... Nf6 {[%clk
0:03:01.9]} 4. O-O {[%clk 0:03:04]} 4... Nxe4 {[%clk 0:03:02.3]} 5. Re1 {[%clk
0:03:05.4]} 5... Nd6 {[%clk 0:03:03.5]} 6. Nxe5 {[%clk 0:03:07.1]} 6... Be7
{[%clk 0:03:05.1]} 7. Bf1 {[%clk 0:03:05.6]} 7... Nf5 {[%clk 0:03:05.9]} 8. c3
{[%clk 0:03:03.2]} 8... Nxe5 {[%clk 0:03:02.9]} 9. Rxe5 {[%clk 0:03:05.1]} 9...
d6 {[%clk 0:03:04.5]} 10. Re1 {[%clk 0:03:05.4]} 10... O-O {[%clk 0:03:06.1]}
11. d4 {[%clk 0:03:06.7]} 11... d5 {[%clk 0:03:08]} 12. Nd2 {[%clk 0:03:08]}
12... Bd6 {[%clk 0:03:09.4]} 13. Nf3 {[%clk 0:03:09.2]} 13... Nh4 {[%clk
0:03:08.5]} 14. Nxh4 {[%clk 0:03:02.9]} 14... Qxh4 {[%clk 0:03:10.4]} 15. g3
{[%clk 0:03:04.5]} 15... Qf6 {[%clk 0:03:10.9]} 16. Bg2 {[%clk 0:03:05.8]} 16...
c6 {[%clk 0:03:12.2]} 17. Qf3 {[%clk 0:03:07.3]} 17... Qxf3 {[%clk 0:03:07.9]}
18. Bxf3 {[%clk 0:03:09.2]} 18... Bf5 {[%clk 0:03:09]} 19. Bd2 {[%clk
0:03:03.4]} 19... a5 {[%clk 0:03:08.1]} 20. Bf4 {[%clk 0:02:54.8]} 20... Bxf4
{[%clk 0:03:08.2]} 21. gxf4 {[%clk 0:02:56.7]} 21... f6 {[%clk 0:03:05.6]} 22.
Re7 {[%clk 0:02:56.4]} 22... Rf7 {[%clk 0:03:07.1]} 23. Rae1 {[%clk 0:02:57.3]}
23... Kf8 {[%clk 0:03:08.7]} 24. Rxf7+ {[%clk 0:02:56.4]} 24... Kxf7 {[%clk
0:03:09.9]} 25. a3 {[%clk 0:02:43.5]} 25... Ra6 {[%clk 0:03:02.7]} 26. h4 {[%clk
0:02:38.7]} 26... Rb6 {[%clk 0:03:03.5]} 27. Re2 {[%clk 0:02:37.8]} 27... g6
{[%clk 0:03:00.2]} 28. Kg2 {[%clk 0:02:37.4]} 28... Ra6 {[%clk 0:02:46.4]} 29.
Kg3 {[%clk 0:02:37.6]} 29... h5 {[%clk 0:02:42.4]} 30. Re1 {[%clk 0:02:34.8]}
30... Rb6 {[%clk 0:02:43]} 31. Re2 {[%clk 0:02:32.7]} 31... Ra6 {[%clk
0:02:43.3]} 32. Re1 {[%clk 0:02:32.2]} 32... Ra8 {[%clk 0:02:44.7]} 33. Bd1
{[%clk 0:02:31.1]} 33... Be4 {[%clk 0:02:43.9]} 34. Re3 {[%clk 0:02:21.9]} 34...
Re8 {[%clk 0:02:39.1]} 35. f3 {[%clk 0:02:16.7]} 35... Bf5 {[%clk 0:02:40.4]}
36. Rxe8 {[%clk 0:02:17.2]} 36... Kxe8 {[%clk 0:02:42.3]} 37. Kf2 {[%clk
0:02:17.9]} 37... Kf7 {[%clk 0:02:42.9]} 38. Kg3 {[%clk 0:02:18.8]} 38... Kg7
{[%clk 0:02:44.3]} 39. b4 {[%clk 0:02:18.8]} 39... axb4 {[%clk 0:02:45]} 40.
axb4 {[%clk 0:02:20.7]} 40... Kh6 {[%clk 0:02:46]} 41. Be2 {[%clk 0:02:21.9]}
41... Bd7 {[%clk 0:02:39.4]} 42. Bd3 {[%clk 0:02:19.9]} 42... Kg7 {[%clk
0:02:40.1]} 43. Kf2 {[%clk 0:02:20.3]} 43... Kf7 {[%clk 0:02:40.8]} 44. Ke3
{[%clk 0:02:19.7]} 44... Be8 {[%clk 0:02:42.3]} 45. Kf2 {[%clk 0:02:20.9]} 45...
Ke7 {[%clk 0:02:43.5]} 46. Ke3 {[%clk 0:02:20.5]} 46... Kd6 {[%clk 0:02:43.6]}
47. Kd2 {[%clk 0:02:21.2]} 47... b6 {[%clk 0:02:44]} 48. Ke3 {[%clk 0:02:21.5]}
48... c5 {[%clk 0:02:43.6]} 49. bxc5+ {[%clk 0:02:21.1]} 49... bxc5 {[%clk
0:02:45.5]} 50. Kd2 {[%clk 0:02:19]} 50... cxd4 {[%clk 0:02:39]} 51. cxd4 {[%clk
0:02:20.9]} 51... Ke7 {[%clk 0:02:40.3]} 52. Ke3 {[%clk 0:02:21.6]} 52... Kf7
{[%clk 0:02:41.2]} 53. Kf2 {[%clk 0:02:22]} 53... Ba4 {[%clk 0:02:41.7]} 54. Kg3
{[%clk 0:02:21]} 54... Bd1 {[%clk 0:02:42.4]} 55. Bb5 {[%clk 0:02:21.2]} 55...
Bc2 {[%clk 0:02:42.5]} 56. Bc6 {[%clk 0:02:21.5]} 56... Ke6 {[%clk 0:02:44]} 57.
Bb5 {[%clk 0:02:20]} 57... Kd6 {[%clk 0:02:44.9]} 58. Kf2 {[%clk 0:02:19.1]}
58... Kc7 {[%clk 0:02:44.5]} 59. Ke3 {[%clk 0:02:17.9]} 59... Bf5 {[%clk
0:02:45.1]} 60. Kd2 {[%clk 0:02:17.1]} 60... Kd6 {[%clk 0:02:45.2]} 61. Ke3
{[%clk 0:02:16.1]} 61... Bb1 {[%clk 0:02:46.2]} 62. Be8 {[%clk 0:02:13.2]} 62...
Ke6 {[%clk 0:02:46.2]} 63. Bb5 {[%clk 0:02:12.7]} 63... Bc2 {[%clk 0:02:46.2]}
64. Bf1 {[%clk 0:02:12.8]} 64... Bb3 {[%clk 0:02:41.7]} 65. Bd3 {[%clk
0:02:13.1]} 65... Kf7 {[%clk 0:02:42.9]} 66. Bb5 {[%clk 0:02:09.3]} 66... Ke6
{[%clk 0:02:38.1]} 67. Bd3 {[%clk 0:02:09.4]} 67... Kf7 {[%clk 0:02:38.9]} 68.
Bb5 {[%clk 0:02:10.4]} 68... Ba2 {[%clk 0:02:40.4]} 69. Bd3 {[%clk 0:02:09.8]}
69... Kg7 {[%clk 0:02:41.5]} 70. Kf2 {[%clk 0:02:10.3]} 70... Kf7 {[%clk
0:02:35]} 71. Ke3 {[%clk 0:02:10.8]} 71... Bb3 {[%clk 0:02:36.7]} 72. Kf2 {[%clk
0:02:11.9]} 72... Bc4 {[%clk 0:02:35.4]} 73. Bc2 {[%clk 0:02:11.5]} 73... Kg7
{[%clk 0:02:36.7]} 74. Kg3 {[%clk 0:02:11.5]} 74... Kh6 {[%clk 0:02:37.9]} 75.
Bb1 {[%clk 0:02:11.9]} 75... g5 {[%clk 0:02:37.5]} 76. fxg5+ {[%clk 0:02:08.1]}
76... fxg5 {[%clk 0:02:39.4]} 77. hxg5+ {[%clk 0:02:01.9]} 77... Kxg5 {[%clk
0:02:41.3]} 78. f4+ {[%clk 0:02:03.8]} 78... Kf6 {[%clk 0:02:42.3]} 79. Kh4
{[%clk 0:02:05.5]} 79... Be2 {[%clk 0:02:43.6]} 80. Bc2 {[%clk 0:02:04.8]} 80...
Bg4 {[%clk 0:02:43.8]} 81. Bd3 {[%clk 0:02:04.3]} 81... Bf5 {[%clk 0:02:43.2]}
82. Be2 {[%clk 0:02:01.7]} 82... Bg6 {[%clk 0:02:39.9]} 83. Bf3 {[%clk 0:02:03]}
83... Kf5 {[%clk 0:00:48.6]} 84. Bxd5 {[%clk 0:02:01.8]} 84... Kxf4 {[%clk
0:00:25]} 85. Bg8 {[%clk 0:02:01.2]} 85... Be8 {[%clk 0:00:21.9]} 86. d5 {[%clk
0:02:00.9]} 86... Ke5 {[%clk 0:00:22.8]} 87. Be6 {[%clk 0:02:01.3]} 87... Kd6
{[%clk 0:00:24.1]} 88. Bg4 {[%clk 0:02:01.2]} 88... hxg4 {[%clk 0:00:18.7]} 89.
Kxg4 {[%clk 0:02:03.1]} 89... Bf7 {[%clk 0:00:18.8]} 90. Kf4 {[%clk 0:02:05]}
90... Bg8 {[%clk 0:00:19.6]} 91. Ke3 {[%clk 0:02:06.9]} 91... Bf7 {[%clk
0:00:20.8]} 92. Kf4 {[%clk 0:02:08.8]} 92... Bg6 {[%clk 0:00:22.2]} 93. Ke3
{[%clk 0:02:10.7]} 93... Bb1 {[%clk 0:00:24]} 94. Kf4 {[%clk 0:02:12.6]} 94...
Ba2 {[%clk 0:00:25.9]} 95. Kf3 {[%clk 0:02:14.5]} 95... Bb3 {[%clk 0:00:18.5]}
96. Kf4 {[%clk 0:02:16.4]} 96... Kxd5 {[%clk 0:00:02.3]} 1/2-1/2